bitfinex/quotes_ETHUSD_20220201
["timestamp","ask_amount","ask_price","bid_price","bid_amount"]
[1643740652745,0.90512675,2789.2,2788.5,0.59842658]
[1643740652946,1.77863456,2789.2,2788.5,0.59842658]
[1643740653147,0.90512675,2789.1,2788.5,0.59842658]
[1643740653596,0.90512675,2789.0,2788.5,0.44558477]
[1643740653803,0.1792,2789.3,2788.6,0.59842658]
[1643740654011,0.1792,2789.3,2788.8,0.67401953]
[1643740654012,0.90863967,2789.2,2788.8,0.67401953]
[1643740654204,0.90863967,2789.2,2788.7,1.27244611]
[1643740654405,1.2173,2789.4,2788.8,0.59842658]
[1643740654604,0.90860883,2789.3,2788.8,1.27244611]
[1643740654806,0.90860883,2789.3,2788.9,0.59842658]
[1643740655208,0.90860883,2789.3,2789.0,0.59842658]
[1643740655406,0.90860883,2789.3,2789.1,0.59842658]
[1643740655606,0.90860883,2789.3,2789.2,0.59842658]
[1643740656009,0.90860883,2789.3,2788.8,0.59842658]
[1643740656207,0.90860883,2789.3,2788.9,0.59842658]
[1643740656409,0.90860883,2789.3,2789.0,0.59842658]
[1643740656614,0.90860883,2789.3,2788.8,0.59842658]
[1643740656809,0.90860883,2789.3,2788.9,0.59842658]
[1643740657007,0.90860883,2789.3,2789.0,0.59842658]
[1643740657207,0.90860883,2789.3,2789.1,0.59842658]
[1643740657443,0.90860883,2789.3,2789.2,0.59842658]
[1643740657843,0.90860883,2789.3,2788.9,0.59842658]
[1643740658048,0.1792,2789.6,2789.2,5.25]
[1643740658246,10.2301,2789.7,2789.3,0.59842658]
[1643740658443,10.2301,2789.7,2789.4,0.59842658]
[1643740658444,0.90832485,2789.6,2789.4,0.59842658]
[1643740658645,0.90832485,2789.6,2789.5,0.59842658]
[1643740658845,0.90832485,2789.6,2789.5,4.19319256]
[1643740659050,1.64524051,2790.5,2789.6,6.65]
[1643740659051,7.52406647,2790.3,2789.6,6.65]
[1643740659263,1.2789786,2790.9,2789.6,29.7934753]
[1643740659264,0.67830105,2790.6,2789.6,29.7934753]
[1643740659449,11.98950084,2790.9,2789.6,29.7934753]
[1643740659450,0.67830105,2790.7,2789.7,1.59847067]
[1643740659651,0.1791,2790.6,2789.9,0.67401953]
[1643740659849,1.22884493,2791.2,2790.0,0.7078755]
[1643740659850,0.1791,2790.8,2790.0,0.7078755]
[1643740660048,0.1791,2791.1,2790.5,0.37499046]
[1643740660252,0.1791,2791.2,2790.6,0.89578]
[1643740660450,0.1791,2791.0,2790.6,0.89578]
[1643740660647,0.1791,2791.2,2790.6,0.89578]
[1643740660846,0.1791,2791.2,2790.4,0.895772]
[1643740660847,0.85740105,2791.2,2790.4,0.895772]
[1643740661088,0.85740105,2791.2,2790.2,0.17911]
[1643740661288,0.32093005,2790.7,2790.1,1.79155]
[1643740661487,0.32093005,2790.7,2790.0,0.1791]
[1643740661684,0.32093005,2790.7,2789.9,0.52341072]
[1643740661892,0.27093005,2790.7,2789.9,0.52341072]
[1643740662485,0.27093005,2790.7,2789.9,1.00252072]
[1643740662890,0.27093005,2790.7,2789.9,0.1791]
[1643740663393,0.1791,2790.6,2789.6,0.31729997]
[1643740663590,6.2868,2790.6,2789.7,0.143502]
[1643740663808,12.10320105,2790.6,2789.5,0.13819996]
[1643740663992,0.88867942,2790.3,2789.5,0.13819996]
[1643740664294,0.1792,2790.2,2789.5,0.13819996]
[1643740664497,0.1792,2790.5,2789.5,0.13819996]
[1643740665340,0.38827987,2790.0,2789.5,0.13819996]
[1643740665741,0.38827987,2790.0,2789.3,1.07539]
[1643740665947,0.1792,2789.9,2789.3,0.1792]
[1643740666942,0.33975472,2789.5,2789.3,0.1792]
[1643740667155,0.6942,2790.0,2789.3,0.1792]
[1643740668621,0.32975361,2789.9,2789.3,0.1792]
[1643740668807,0.1792,2789.8,2789.1,0.43233582]
[1643740671316,0.32975361,2789.9,2789.1,0.61153582]
[1643740671915,0.32975361,2789.9,2789.1,0.1792]
[1643740672114,0.32975361,2789.9,2789.1,0.4792]
[1643740672945,0.32975361,2789.9,2789.1,0.8205752]
[1643740673145,0.32975361,2789.9,2789.1,0.3792]
[1643740675153,0.32975361,2789.9,2789.1,0.1792]
[1643740675950,2.08717844,2789.8,2789.1,0.1792]
[1643740677201,2.08717844,2789.8,2789.0,0.53187795]
[1643740677805,2.08717844,2789.8,2789.0,0.83187795]
[1643740678200,0.1792,2790.0,2789.0,0.83187795]
[1643740678201,2.2675797,2790.0,2789.0,0.73187795]
[1643740678403,2.2675797,2790.0,2789.1,0.18758046]
[1643740678603,2.2675797,2790.0,2789.0,0.73187795]
[1643740679003,0.89473632,2789.9,2789.1,0.60418806]
[1643740679404,2.36208602,2789.8,2789.1,0.60418806]
[1643740679605,0.89473632,2789.7,2789.1,0.60418806]
[1643740680455,0.89473632,2789.6,2789.1,0.60418806]
[1643740680652,0.1792,2790.1,2789.2,0.17911]
[1643740680854,1.2234,2790.2,2789.2,1.55333583]
[1643740681059,0.89456058,2790.1,2789.3,0.67820437]
[1643740681261,0.88040084,2791.0,2789.3,0.67820437]
[1643740681262,0.1792,2790.7,2789.6,1.0]
[1643740681455,1.72927804,2791.4,2789.7,1.29829806]
[1643740681456,0.89447047,2790.6,2789.7,1.29829806]
[1643740681651,0.89447047,2790.5,2789.8,1.72276997]
[1643740681850,0.89447047,2790.4,2790.2,0.8958593]
[1643740682051,0.67830105,2791.1,2790.3,4.85761957]
[1643740682052,0.85740105,2791.1,2790.3,4.85761957]
[1643740682255,0.89423104,2791.0,2790.4,0.60418806]
[1643740683699,0.89423104,2791.0,2790.5,0.43571734]
[1643740683901,0.89423104,2791.0,2790.5,0.73571734]
[1643740684602,0.89423104,2791.0,2790.5,3.43171043]
[1643740684802,0.89423104,2791.0,2790.5,3.42312424]
[1643740684999,0.89423104,2791.0,2790.5,2.52733424]
[1643740685199,0.89423104,2791.0,2790.5,1.63153734]
[1643740685708,0.89423104,2790.9,2790.5,1.63153734]
[1643740686006,0.89423104,2790.8,2790.5,1.63153734]
[1643740686201,0.89423104,2790.7,2790.5,1.63153734]
[1643740686403,0.89423104,2790.6,2790.5,1.63153734]
[1643740686803,0.89423104,2791.0,2790.5,1.81064734]
[1643740687005,1.93625192,2790.9,2790.4,0.1791]
[1643740687376,0.03398192,2790.3,2790.2,0.143453]
[1643740687765,0.03398192,2790.3,2790.0,0.1791]
[1643740688270,0.03398192,2790.3,2789.8,0.1792]
[1643740688462,0.03398192,2790.3,2789.7,0.35831]
[1643740688663,2.03202726,2790.3,2789.7,0.35831]
[1643740688863,0.03398192,2790.3,2789.7,0.35831]
[1643740689067,2.02017406,2790.3,2789.7,0.35831]
[1643740689266,2.03875139,2790.3,2789.7,0.1792]
[1643740689463,2.03875139,2790.3,2789.5,0.1792]
[1643740690468,0.88168362,2790.2,2789.5,0.1792]
[1643740690670,2.10230073,2790.1,2789.5,0.1792]
[1643740691091,0.88168362,2790.2,2789.5,0.1792]
[1643740691290,0.21318192,2790.3,2789.5,0.4792]
[1643740691492,0.21318192,2790.3,2789.5,0.3]
[1643740691696,0.21318192,2790.3,2789.8,0.39930793]
[1643740692093,0.03398192,2790.3,2789.8,0.39930793]
[1643740692294,0.03398192,2790.3,2789.8,0.69930793]
[1643740692498,0.03398192,2790.3,2789.9,0.17911]
[1643740692698,0.03398192,2790.3,2789.9,0.35831]
[1643740692901,0.03398192,2790.3,2789.9,0.65831]
[1643740693096,0.03398192,2790.3,2790.0,0.00863896]
[1643740693505,0.03398192,2790.3,2790.1,0.1792]
[1643740693696,0.03398192,2790.3,2790.2,5.67911]
[1643740694096,0.03398192,2790.3,2790.2,6.97911]
[1643740697552,0.03398192,2790.3,2790.2,9.1798]
[1643740698609,6.27672118,2791.1,2790.5,1.7915332]
[1643740698805,1.23442605,2791.2,2790.5,2.6873032]
[1643740699000,15.7115,2791.3,2790.5,2.9873032]
[1643740699298,1.94144838,2791.2,2790.6,1.40101451]
[1643740699899,1.94144838,2791.2,2790.6,1.70101451]
[1643740700099,1.94144838,2791.2,2790.6,1.3]
[1643740700501,1.94144838,2791.2,2790.6,0.3]
[1643740700702,1.94144838,2791.2,2790.0,1.7916994]
[1643740700703,0.79681023,2790.9,2790.0,1.7916994]
[1643740700902,2.33131991,2790.8,2790.0,0.1791]
[1643740701103,0.41150164,2790.7,2790.0,0.1791]
[1643740701306,0.41150164,2790.7,2789.9,0.58673917]
[1643740703448,7.71985185,2790.8,2789.9,0.58673917]
[1643740703648,7.71985185,2790.8,2789.9,1.06584917]
[1643740703851,7.71985185,2790.8,2790.0,0.89598]
[1643740703852,6.086,2790.8,2790.0,0.89598]
[1643740704749,6.42802221,2790.8,2790.0,0.89598]
[1643740704949,6.42802221,2790.8,2790.1,0.17911]
[1643740705153,6.42802221,2790.8,2789.9,1.4791]
[1643740705154,2.01821477,2790.7,2789.9,0.1791]
[1643740705355,0.01266703,2790.6,2789.7,0.322576]
[1643740705554,0.01266703,2790.6,2789.7,0.143476]
[1643740705555,0.6092,2790.5,2789.7,0.143476]
[1643740706203,0.71800079,2790.4,2789.7,0.143476]
[1643740706407,0.1792,2790.3,2789.7,0.143476]
[1643740707010,0.01266703,2790.6,2789.9,0.89593]
[1643740707011,0.1792,2790.6,2789.9,0.89593]
[1643740707208,0.88855493,2790.5,2790.1,0.34249834]
[1643740707408,1.1396,2790.7,2790.2,0.60901313]
[1643740707614,0.88848695,2790.6,2790.2,1.09809747]
[1643740707814,0.88848695,2791.0,2790.7,0.72643923]
[1643740708010,0.88841389,2790.9,2790.3,3.00424359]
[1643740708210,0.88841389,2790.8,2790.4,1.90894385]
[1643740708409,0.88841389,2791.1,2790.5,0.90894385]
[1643740708610,0.88841389,2791.1,2790.6,1.02593566]
[1643740708810,0.88841389,2791.1,2790.7,0.60894385]
[1643740710752,0.88841389,2791.1,2790.7,1.50464385]
[1643740710955,0.88841389,2791.1,2790.8,0.89572]
[1643740712156,0.88841389,2791.1,2790.9,0.60862969]
[1643740712358,13.9141,2791.7,2791.0,7.95594698]
[1643740712557,0.88762625,2791.6,2791.0,5.84105]
[1643740712755,0.88762625,2791.6,2791.1,0.89551]
[1643740714006,0.88762625,2791.6,2791.1,2.661579]
[1643740714206,0.88762625,2791.6,2791.4,0.8955]
[1643740716105,0.88762625,2791.6,2791.0,5.5521579]
[1643740716306,0.88762625,2791.6,2790.8,1.79117]
[1643740716504,1.06672625,2791.6,2790.8,1.79117]
[1643740716710,0.88762625,2791.5,2790.8,1.79117]
[1643740717005,0.88762625,2791.5,2790.8,3.58242]
[1643740717647,0.88762625,2791.5,2791.0,0.89566]
[1643740718649,0.39570059,2791.3,2791.0,0.89566]
[1643740718949,0.39570059,2791.3,2791.0,1.19566]
[1643740718950,0.88762625,2791.2,2791.0,1.19566]
[1643740721492,0.88762625,2791.2,2790.8,3.58242]
[1643740721692,0.88762625,2791.2,2790.9,0.60870569]
[1643740723193,0.88762625,2791.2,2790.7,0.322537]
[1643740723393,0.88762625,2791.2,2790.8,0.60965243]
[1643740723394,0.89453571,2791.2,2790.8,0.60965243]
[1643740723592,0.88762625,2791.1,2790.8,0.60965243]
[1643740723795,0.88762625,2791.0,2790.8,0.60965243]
[1643740723999,0.88762625,2790.9,2790.8,0.60965243]
[1643740724400,0.39570059,2791.3,2790.8,0.60965243]
[1643740724401,0.88762625,2791.2,2790.8,0.60965243]
[1643740724594,0.88762625,2791.1,2790.8,0.60965243]
[1643740724837,0.88762625,2791.0,2790.8,0.60965243]
[1643740725038,0.39570059,2791.3,2790.8,0.60965243]
[1643740725039,0.88762625,2790.9,2790.8,0.60965243]
[1643740725442,1.64652588,2791.2,2790.8,0.60965243]
[1643740725642,0.88762625,2791.1,2790.8,0.60965243]
[1643740726049,0.88762625,2791.1,2790.7,0.143437]
[1643740726050,1.31762625,2791.1,2790.7,0.143437]
[1643740726248,0.88762625,2791.0,2790.7,0.143437]
[1643740726450,0.34156604,2790.8,2790.7,0.143437]
[1643740726651,0.34156604,2790.8,2790.7,0.75361168]
[1643740726850,1.22919229,2790.8,2790.7,0.75361168]
[1643740728252,1.22919229,2790.8,2790.7,0.61017468]
[1643740728705,1.22919229,2790.8,2790.7,0.60995525]
[1643740729105,1.22919229,2790.8,2790.4,0.60995525]
[1643740729308,0.88762625,2790.7,2790.4,0.60995525]
[1643740729506,0.88762625,2790.7,2790.5,0.60995525]
[1643740729710,0.88762625,2790.7,2790.6,0.60995525]
[1643740729906,0.88762625,2790.7,2790.2,0.61011025]
[1643740730107,1.31762625,2790.7,2790.3,0.61011025]
[1643740730313,1.06672625,2790.6,2790.4,0.61011025]
[1643740730509,1.31762625,2790.5,2789.8,7.47]
[1643740730712,1.31762625,2790.5,2789.9,0.61039898]
[1643740730713,1.06682625,2790.4,2789.9,0.61039898]
[1643740730907,1.31762625,2790.3,2789.9,0.61039898]
[1643740731110,0.83815797,2790.1,2789.6,7.47]
[1643740731308,0.43,2790.0,2789.7,0.61039898]
[1643740734768,0.1792,2790.6,2789.7,0.61039898]
[1643740734974,0.90522079,2790.5,2789.7,0.61039898]
[1643740735171,0.1792,2790.4,2789.7,0.61039898]
[1643740735367,14.3061,2790.7,2789.7,0.78959898]
[1643740735368,0.90522079,2790.3,2789.7,0.78959898]
[1643740735570,0.41434371,2790.1,2789.8,0.61039898]
[1643740735772,0.41434371,2790.1,2789.9,1.50642898]
[1643740735970,0.41434371,2790.1,2790.0,0.61039898]
[1643740736405,0.1792,2790.6,2790.0,0.61039898]
[1643740736608,0.9054456,2790.5,2790.1,0.61039898]
[1643740736806,0.9054456,2790.4,2790.2,0.61039898]
[1643740737005,7.8266,2790.7,2790.3,0.61039898]
[1643740737205,0.90566781,2790.6,2790.4,0.61039898]
[1643740737509,0.37510748,2790.2,2789.9,0.89603]
[1643740737704,0.37510748,2790.2,2790.0,0.5938899]
[1643740737906,6.03,2790.7,2790.0,0.5938899]
[1643740738104,0.90569523,2790.6,2790.0,0.5938899]
[1643740738906,0.39657194,2790.2,2790.0,0.5938899]
[1643740739107,6.03,2790.7,2790.1,3.16908544]
[1643740739310,1.1959,2790.8,2790.2,0.78862753]
[1643740739506,0.90557025,2790.7,2790.3,2.89458767]
[1643740739704,18.1705,2791.2,2790.4,0.7729899]
[1643740739705,19.41377304,2791.2,2790.4,0.7729899]
[1643740739955,0.90558878,2791.1,2790.5,0.5938899]
[1643740740162,0.36830966,2790.8,2790.5,0.5938899]
[1643740740357,11.7576,2791.2,2790.6,0.5938899]
[1643740740558,0.90586905,2791.1,2790.8,0.01484366]
[1643740740760,1.91610105,2791.7,2790.9,0.5938899]
[1643740740761,5.0217,2791.7,2790.9,0.5938899]
[1643740740956,5.0217,2791.7,2791.0,0.1791]
[1643740740957,0.90571116,2791.6,2791.0,0.1791]
[1643740741157,0.90571116,2791.6,2791.1,0.5938899]
[1643740741357,0.35332923,2791.5,2791.1,0.5938899]
[1643740741556,0.90571116,2791.4,2791.1,0.5938899]
[1643740742159,0.90571116,2791.4,2791.1,2.385034]
[1643740742358,0.90571116,2791.4,2791.2,0.5938899]
[1643740742558,0.90571116,2791.4,2791.0,0.1791]
[1643740742762,5.52090105,2791.7,2791.1,0.59322305]
[1643740742763,0.90571116,2791.3,2791.1,0.59322305]
[1643740742958,0.90571116,2791.2,2791.1,0.59322305]
[1643740743364,4.8426,2791.7,2791.1,0.59322305]
[1643740743365,4.8426,2791.7,2791.2,0.89558]
[1643740743610,4.8426,2791.7,2791.0,0.1791]
[1643740743611,1.79660966,2791.6,2791.0,0.1791]
[1643740743813,0.90520843,2791.5,2791.1,0.59317966]
[1643740744611,0.34508458,2791.2,2791.1,0.59317966]
[1643740744812,1.25029301,2791.2,2791.1,0.59317966]
[1643740745013,1.25029301,2791.2,2791.0,0.59317966]
[1643740745215,1.25029301,2791.2,2790.7,1.79134]
[1643740745216,5.55520843,2791.1,2790.7,0.1791]
[1643740745418,0.90520843,2791.0,2790.3,0.1791]
[1643740745614,1.33520843,2791.0,2790.4,0.5936946]
[1643740745818,0.90520843,2790.9,2790.4,0.5936946]
[1643740746015,0.38685648,2790.3,2790.1,7.47]
[1643740746226,0.38685648,2790.3,2790.2,0.59380771]
[1643740746413,0.13623837,2790.3,2790.2,0.59380771]
[1643740746614,1.04147786,2790.3,2790.2,0.59380771]
[1643740747862,0.90523949,2790.3,2790.2,0.59380771]
[1643740748262,0.87503395,2790.6,2790.2,0.59380771]
[1643740748459,0.90543675,2790.5,2790.2,0.59380771]
[1643740748659,0.90543675,2790.4,2790.2,0.59380771]
[1643740748859,0.1791,2790.8,2790.2,0.59380771]
[1643740749063,0.38288689,2790.3,2790.2,0.59380771]
[1643740750862,0.69278154,2790.6,2790.2,0.59380771]
[1643740751107,0.90570894,2790.5,2790.2,0.59380771]
[1643740751310,0.90570894,2790.4,2790.2,0.59380771]
[1643740751512,0.1791,2790.8,2790.2,0.59380771]
[1643740751712,19.05200105,2791.1,2790.2,0.59380771]
[1643740751713,0.90573489,2790.7,2790.2,0.59380771]
[1643740751908,0.1791,2791.0,2790.2,0.59380771]
[1643740751909,0.90573489,2790.9,2790.2,0.59380771]
[1643740752110,0.4274927,2790.7,2790.2,1.48974771]
[1643740752311,0.90573489,2790.6,2790.3,0.59380771]
[1643740754009,0.4274927,2790.7,2790.3,0.59380771]
[1643740754210,0.90582344,2790.6,2790.3,0.59380771]
[1643740754412,0.4274927,2790.7,2790.3,0.59380771]
[1643740754615,0.1791,2791.0,2790.5,0.01443901]
[1643740754850,7.7051,2791.1,2790.6,0.77291771]
[1643740754851,0.90612509,2790.9,2790.6,0.77291771]
[1643740755057,1.24356566,2791.5,2790.7,0.60131023]
[1643740755058,0.1791,2791.5,2790.7,0.60131023]
[1643740755254,0.90592439,2791.4,2790.8,0.77291771]
[1643740755450,12.5708,2791.6,2790.9,2.8348529]
[1643740755451,0.90592439,2791.3,2790.9,2.8348529]
[1643740755653,6.1267,2791.6,2791.2,1.24790826]
[1643740755860,0.9059374,2791.5,2791.3,0.59380771]
[1643740756454,4.7898,2791.7,2791.3,0.59380771]
[1643740756455,0.9059374,2791.4,2791.3,0.59380771]
[1643740756652,0.9059374,2791.6,2791.3,0.59380771]
[1643740757255,0.9059374,2791.6,2791.3,1.48929771]
[1643740757457,0.9059374,2791.6,2791.3,0.89549]
[1643740757657,1.60770539,2791.6,2791.0,0.1791]
[1643740757856,0.9059374,2791.5,2791.1,0.59862765]
[1643740758059,0.9059374,2791.4,2791.0,0.1791]
[1643740758257,0.9059374,2791.3,2791.0,0.1791]
[1643740758463,1.00176799,2791.6,2791.0,0.1791]
[1643740758464,0.9059374,2791.2,2791.0,0.1791]
[1643740758704,4.38422048,2791.1,2791.0,0.1791]
[1643740759109,0.9059374,2791.1,2791.0,0.1791]
[1643740759604,0.9059374,2791.1,2790.7,0.1791]
[1643740759806,0.33247399,2791.2,2790.8,0.64366043]
[1643740759807,0.9059374,2791.0,2790.8,0.64366043]
[1643740760008,0.9059374,2790.9,2790.8,0.64366043]
[1643740760409,0.9059374,2790.9,2790.5,1.97056]
[1643740760609,0.36630824,2790.7,2790.6,0.64387582]
[1643740763250,0.82513381,2790.9,2790.6,0.64387582]
[1643740763451,0.85498981,2790.8,2790.6,0.64387582]
[1643740763654,0.1791,2791.3,2790.6,0.64387582]
[1643740763850,0.85496014,2791.2,2790.6,0.64387582]
[1643740764453,0.4063326,2790.9,2790.6,0.64387582]
[1643740765250,0.8551714,2790.8,2790.6,0.64387582]
[1643740765451,6.497,2791.3,2790.7,0.8958]
[1643740765651,0.85515875,2791.2,2790.8,0.64387582]
[1643740766295,0.4240318,2791.0,2790.8,0.64387582]
[1643740766495,0.85515875,2790.9,2790.8,0.64387582]
[1643740767400,6.497,2791.3,2790.9,0.89564]
[1643740767401,6.3179,2791.3,2790.9,0.89564]
[1643740767598,0.85516806,2791.2,2791.0,0.64387582]
[1643740767796,0.1791,2791.7,2791.1,0.64387582]
[1643740768097,0.85507545,2791.6,2791.2,0.64387582]
[1643740768295,0.85507545,2791.5,2791.3,0.64387582]
[1643740768498,0.85507545,2791.5,2791.4,0.64387582]
[1643740768998,1.2198,2791.8,2791.5,0.73709588]
[1643740769197,0.1791,2791.9,2791.5,0.73709588]
[1643740769598,0.60097873,2792.0,2791.5,1.64202046]
[1643740769861,0.42187873,2792.0,2791.5,1.63257588]
[1643740771257,0.42187873,2792.0,2791.6,0.89547]
[1643740772858,0.42187873,2792.0,2791.5,3.42343588]
[1643740773067,0.42187873,2792.0,2791.5,0.73709588]
[1643740773462,0.1789,2791.9,2791.5,0.73709588]
[1643740773701,0.516,2791.8,2791.5,0.73709588]
[1643740773901,0.1791,2791.7,2791.5,0.73709588]
[1643740774210,7.34666712,2791.6,2791.5,0.73709588]
[1643740774402,5.4,2791.5,2790.3,0.1791]
[1643740774604,0.6951,2791.4,2790.8,0.143442]
[1643740775403,0.89925286,2791.0,2790.8,0.143442]
[1643740775603,1.2821599,2791.0,2790.8,0.143442]
[1643740777856,0.38290704,2791.0,2790.8,0.143442]
[1643740779364,0.1791,2791.2,2790.8,0.143442]
[1643740779561,0.1791,2791.4,2790.8,0.143442]
[1643740780260,0.1791,2791.4,2790.8,1.039252]
[1643740780460,0.88867206,2791.4,2790.8,1.039252]
[1643740780658,0.32128592,2791.1,2790.8,1.039252]
[1643740781306,0.1791,2791.4,2790.8,1.039252]
[1643740781607,0.1791,2791.4,2791.0,0.89574]
[1643740782208,0.78595809,2791.3,2791.0,0.89574]
[1643740783410,0.31793923,2791.2,2791.0,0.89574]
[1643740784212,6.0071,2791.5,2791.0,0.89574]
[1643740784617,0.1791,2791.8,2791.0,2.97221058]
[1643740784854,1.3618,2792.1,2791.1,0.1791]
[1643740785052,0.1791,2792.0,2791.4,0.89557]
[1643740785251,1.95471801,2792.1,2791.4,0.89557]
[1643740785252,2.13381801,2792.1,2791.4,0.89557]
[1643740785554,0.37523507,2791.7,2791.4,0.89557]
[1643740786052,0.37523507,2791.7,2791.2,1.79113]
[1643740786255,0.37523507,2791.7,2791.0,0.1791]
[1643740787053,0.37523507,2791.7,2790.9,1.97028]
[1643740787054,0.93715486,2791.5,2790.9,1.97028]
[1643740788260,0.93715486,2791.5,2790.8,0.143442]
[1643740788705,0.516,2791.4,2790.8,0.143442]
[1643740788909,0.99999999,2791.2,2790.7,0.15684831]
[1643740789107,0.67538417,2791.0,2790.7,0.15684831]
[1643740789303,1.56313565,2790.9,2790.7,0.15684831]
[1643740789504,4.81803565,2790.8,2790.7,0.15684831]
[1643740789706,5.23399454,2790.8,2790.7,0.15684831]
[1643740790306,1.28399454,2790.8,2790.7,0.15684831]
[1643740792480,5.08399454,2790.8,2790.7,0.15684831]
[1643740795180,1.89220333,2791.5,2790.9,2.7]
[1643740795393,0.88040084,2791.9,2791.1,4.81208092]
[1643740795585,0.88040084,2792.3,2791.2,2.27639993]
[1643740795789,10.3709,2792.6,2791.8,0.0129685]
[1643740795790,11.25130084,2792.6,2791.8,0.0129685]
[1643740796099,11.25130084,2792.6,2791.8,0.38468843]
[1643740796100,0.57436955,2792.5,2791.8,0.38468843]
[1643740796302,0.57436955,2792.5,2791.9,1.79072]
[1643740796501,0.57436955,2792.5,2791.9,0.89536]
[1643740796703,0.57436955,2792.5,2791.7,5.37213]
[1643740796904,0.57436955,2792.5,2791.7,1.79071]
[1643740797106,1.45477039,2792.5,2791.7,1.79071]
[1643740797304,0.38218437,2791.9,2791.7,1.79071]
[1643740797904,1.05940084,2792.5,2791.7,1.79071]
[1643740798105,1.05940084,2792.5,2791.6,0.1789]
[1643740798305,0.88040084,2792.4,2791.6,0.1789]
[1643740798504,0.1789,2792.3,2791.6,0.1789]
[1643740798706,6.65,2791.9,2791.2,0.27639993]
[1643740798908,6.65,2791.9,2791.2,0.143411]
[1643740799110,8.47362896,2791.9,2791.2,0.143411]
[1643740799308,0.01731705,2791.6,2791.2,0.143411]
[1643740799510,0.01731705,2791.6,2791.1,0.179]
[1643740799511,0.70141603,2791.5,2791.1,0.179]
[1643740800167,0.37040409,2791.4,2791.1,0.179]
[1643740800357,0.6951,2791.3,2791.1,0.179]
[1643740800559,6.65,2791.2,2790.1,0.1791]
[1643740800766,4.88793041,2791.1,2790.1,0.1791]
[1643740800960,4.88793041,2791.1,2789.5,1.79221]
[1643740800961,2.59846921,2791.1,2789.5,1.79221]
[1643740801158,2.53134652,2791.0,2789.6,0.1791]
[1643740801359,0.67457627,2790.2,2789.6,0.1791]
[1643740801571,1.6951,2790.9,2789.6,0.1791]
[1643740801572,0.34964941,2789.9,2789.6,0.1791]
[1643740804303,0.34964941,2789.9,2789.4,0.1792]
[1643740804510,0.34964941,2789.9,2789.2,0.1792]
[1643740804709,0.34964941,2789.9,2789.0,0.1792]
[1643740804908,0.43475459,2789.3,2789.0,0.1792]
[1643740805109,0.1792,2790.1,2789.0,0.1792]
[1643740805110,5.7829,2790.1,2789.0,0.1792]
[1643740805414,5.7829,2790.1,2789.1,0.6717735]
[1643740805911,5.7829,2790.1,2789.0,7.47]
[1643740805912,0.43,2790.0,2789.0,7.47]
[1643740806111,2.07582999,2789.9,2789.0,7.47]
[1643740806408,0.43,2789.8,2789.0,7.47]
[1643740806609,0.68794245,2789.3,2788.9,0.143537]
[1643740807012,0.68794245,2789.3,2788.7,0.25]
[1643740807214,0.68794245,2789.3,2788.4,0.8509735]
[1643740807653,0.1792,2789.2,2788.4,0.1792]
[1643740808062,0.33766157,2789.1,2788.4,0.1792]
[1643740808255,0.1792,2789.2,2788.1,7.47]
[1643740808256,0.1792,2789.0,2788.1,8.3209735]
[1643740808456,1.11794245,2789.3,2788.1,7.47]
[1643740808457,0.1792,2789.2,2788.1,7.47]
[1643740808655,0.1792,2789.2,2788.1,8.1417735]
[1643740808855,0.1792,2789.2,2788.1,7.47]
[1643740809353,0.34513702,2788.5,2788.1,7.47]
[1643740809557,0.3779353,2788.7,2788.2,3.05]
[1643740811208,0.1792,2789.2,2788.2,3.05]
[1643740811609,0.1792,2789.2,2788.3,2.0]
[1643740811811,0.1792,2789.5,2788.3,3.65831]
[1643740812010,6.4712,2789.7,2788.4,0.0364378]
[1643740812213,6.292,2789.7,2789.1,0.01072223]
[1643740812410,6.292,2789.7,2788.7,0.00771565]
[1643740812809,6.292,2789.7,2788.7,1.00771565]
[1643740813010,6.292,2789.7,2788.8,0.17911]
[1643740813213,6.292,2789.7,2789.0,0.89629]
[1643740813815,6.292,2789.7,2788.7,4.59288015]
[1643740813816,6.292,2789.7,2788.7,1.80028565]
[1643740814012,0.1792,2789.6,2788.7,0.00771565]
[1643740814210,0.1792,2789.6,2788.6,7.47]
[1643740814858,0.81761352,2789.2,2788.6,7.47]
[1643740815058,0.1792,2789.6,2788.6,7.47]
[1643740815260,0.1792,2789.6,2788.7,0.75013074]
[1643740815459,0.1792,2789.6,2788.6,7.47]
[1643740815460,0.1792,2789.6,2788.8,0.75007527]
[1643740815666,0.1792,2789.6,2788.6,7.47]
[1643740815969,0.43,2789.5,2788.4,0.25]
[1643740816162,0.43,2789.5,2788.5,0.74996806]
[1643740816163,0.1792,2789.4,2788.5,0.74996806]
[1643740816359,0.1792,2789.4,2788.6,0.74996806]
[1643740816559,0.41624779,2788.8,2788.7,0.74996806]
[1643740816760,0.41624779,2788.8,2788.2,0.75018523]
[1643740816960,0.41624779,2788.8,2788.3,0.75020584]
[1643740817161,0.41624779,2788.8,2788.4,0.75020584]
[1643740817361,0.41624779,2788.8,2788.5,0.75020584]
[1643740817562,2.1792,2789.2,2788.1,7.47]
[1643740817763,2.4792,2789.2,2788.2,0.74417396]
[1643740817962,2.0837359,2789.1,2788.2,0.74417396]
[1643740818161,0.1792,2789.0,2788.2,0.74417396]
[1643740818615,0.38691885,2788.7,2788.2,0.74417396]
[1643740819622,0.1792,2789.0,2788.2,0.74417396]
[1643740819826,0.1792,2789.2,2788.3,0.08695323]
[1643740820024,0.1792,2789.9,2788.4,1.35337396]
[1643740820224,2.1792,2789.9,2788.5,0.74417396]
[1643740820423,2.1792,2789.9,2788.6,7.6492]
[1643740820622,2.1792,2789.9,2788.7,1.08970791]
[1643740820623,0.41041848,2789.3,2788.7,1.08970791]
[1643740820823,0.41041848,2789.3,2788.8,0.92337396]
[1643740821024,0.41041848,2789.3,2788.9,0.74417396]
[1643740821328,0.41041848,2789.3,2789.0,0.74417396]
[1643740821527,2.1792,2789.9,2788.7,0.1792]
[1643740821723,2.1792,2789.9,2788.8,0.74621536]
[1643740822123,2.1792,2789.9,2788.8,2.53872536]
[1643740822354,0.1792,2789.9,2788.9,0.75335889]
[1643740822556,0.42556956,2789.5,2789.0,0.74621536]
[1643740822854,0.42556956,2789.5,2789.1,0.74621536]
[1643740823056,0.42556956,2789.5,2788.8,1.79251]
[1643740823258,0.42556956,2789.5,2788.9,0.74257219]
[1643740824058,1.97542857,2789.4,2788.9,0.74257219]
[1643740824259,0.42556956,2789.5,2788.7,0.1792]
[1643740824463,0.42556956,2789.5,2788.8,0.74246882]
[1643740824464,2.03923541,2789.4,2788.8,0.74246882]
[1643740824659,0.42556956,2789.5,2788.8,0.74246882]